[Event "January 2 Early 2024"]
[Site "https://www.chess.com"]
[Date "2024.01.02"]
[Round "11"]
[White "Paravyan, David"]
[Black "Rasulov, Vugar"]
[Result "1-0"]
[Board "6"]
[TimeControl "180+1"]
[WhiteFideId "4194985"]
[BlackFideId "13402390"]
[WhiteElo "3102"]
[BlackElo "2982"]
[WhiteTeam "FID"]
[BlackTeam "AZE"]
[WhiteClock "0:00:39"]
[BlackClock "0:00:03"]

1. e4 {[%clk 0:03:00]}  e5 {[%clk 0:02:59]} 2. Nf3 {[%clk 0:03:01]}  Nc6 {[%clk 0:03:00]} 3. Bc4 {[%clk 0:03:00]}  Nf6 {[%clk 0:03:00]} 4. d3 {[%clk 0:03:00]}  Be7 {[%clk 0:03:00]} 5. Nc3 {[%clk 0:03:00]}  O-O {[%clk 0:03:00]} 6. a3 {[%clk 0:03:00]}  d6 {[%clk 0:03:00]} 7. Be3 {[%clk 0:03:00]}  Be6 {[%clk 0:02:58]} 8. Nd5 {[%clk 0:03:00]}  Bxd5 {[%clk 0:02:52]} 9. exd5 {[%clk 0:03:01]}  Nb8 {[%clk 0:02:52]} 10. d4 {[%clk 0:02:59]}  Nbd7 {[%clk 0:02:48]} 11. dxe5 {[%clk 0:02:58]}  dxe5 {[%clk 0:02:49]} 12. O-O {[%clk 0:02:55]}  Bd6 {[%clk 0:02:48]} 13. Ba2 {[%clk 0:02:47]}  Re8 {[%clk 0:02:45]} 14. c4 {[%clk 0:02:44]}  a5 {[%clk 0:02:45]} 15. Rc1 {[%clk 0:02:36]}  b6 {[%clk 0:02:45]} 16. Bb3 {[%clk 0:02:36]}  Bc5 {[%clk 0:02:40]} 17. Ba4 {[%clk 0:02:35]}  Re7 {[%clk 0:02:30]} 18. Bc6 {[%clk 0:02:34]}  Rb8 {[%clk 0:02:25]} 19. Nh4 {[%clk 0:02:33]}  Bxe3 {[%clk 0:02:17]} 20. fxe3 {[%clk 0:02:32]}  e4 {[%clk 0:02:15]} 21. Nf5 {[%clk 0:02:30]}  Re5 {[%clk 0:02:14]} 22. Qd4 {[%clk 0:02:28]}  Qf8 {[%clk 0:01:52]} 23. Rf4 {[%clk 0:02:27]}  Qc5 {[%clk 0:01:44]} 24. Rcf1 {[%clk 0:02:26]}  Rd8 {[%clk 0:01:29]} 25. g4 {[%clk 0:02:12]}  h6 {[%clk 0:01:27]} 26. h4 {[%clk 0:02:06]}  Qxd4 {[%clk 0:01:09]} 27. exd4 {[%clk 0:02:07]}  Ree8 {[%clk 0:01:09]} 28. Ne3 {[%clk 0:02:04]}  Rf8 {[%clk 0:01:05]} 29. b4 {[%clk 0:01:53]}  axb4 {[%clk 0:01:05]} 30. axb4 {[%clk 0:01:53]}  Nb8 {[%clk 0:01:03]} 31. Bb5 {[%clk 0:01:49]}  Ne8 {[%clk 0:00:51]} 32. c5 {[%clk 0:01:47]}  Nf6 {[%clk 0:00:29]} 33. Rf5 {[%clk 0:01:47]}  bxc5 {[%clk 0:00:26]} 34. dxc5 {[%clk 0:01:39]}  Nbd7 {[%clk 0:00:23]} 35. Bc6 {[%clk 0:01:02]}  Nb8 {[%clk 0:00:23]} 36. b5 {[%clk 0:00:53]}  Nxc6 {[%clk 0:00:20]} 37. bxc6 {[%clk 0:00:54]}  Rfe8 {[%clk 0:00:14]} 38. g5 {[%clk 0:00:54]}  hxg5 {[%clk 0:00:14]} 39. hxg5 {[%clk 0:00:55]}  Nh5 {[%clk 0:00:10]} 40. Rxf7 {[%clk 0:00:55]}  Ng3 {[%clk 0:00:07]} 41. R1f2 {[%clk 0:00:55]}  Re5 {[%clk 0:00:07]} 42. d6 {[%clk 0:00:50]}  Rxg5 {[%clk 0:00:04]} 43. dxc7 {[%clk 0:00:49]}  Nf5+ {[%clk 0:00:01]} 44. Kf1 {[%clk 0:00:36]}  Nxe3+ {[%clk 0:00:01]} 45. Ke2 {[%clk 0:00:37]}  Re8 {[%clk 0:00:01]} 46. Rf8+ {[%clk 0:00:37]}  Rxf8 {[%clk 0:00:02]} 47. Rxf8+ {[%clk 0:00:38]}  Kxf8 {[%clk 0:00:03]} 48. c8=Q+ {[%clk 0:00:38]}  Kf7 {[%clk 0:00:03]} 49. Kxe3 {[%clk 0:00:39]} 1-0

[Event "January 2 Early 2024"]
[Site "https://www.chess.com"]
[Date "2024.01.02"]
[Round "11"]
[White "Makarian, Rudik"]
[Black "Tari, Aryan"]
[Result "1-0"]
[Board "8"]
[TimeControl "180+1"]
[WhiteFideId "44105681"]
[BlackFideId "1510045"]
[WhiteElo "3033"]
[BlackElo "2925"]
[WhiteTeam "FID"]
[BlackTeam "NOR"]
[WhiteClock "0:00:39"]
[BlackClock "0:00:00"]

1. d4 {[%clk 0:03:00]}  d5 {[%clk 0:02:59]} 2. c4 {[%clk 0:03:00]}  e6 {[%clk 0:02:59]} 3. Nf3 {[%clk 0:03:00]}  Nf6 {[%clk 0:02:59]} 4. Nc3 {[%clk 0:03:01]}  h6 {[%clk 0:02:59]} 5. Bf4 {[%clk 0:03:00]}  Bd6 {[%clk 0:02:58]} 6. Qc1 {[%clk 0:03:01]}  a6 {[%clk 0:02:51]} 7. c5 {[%clk 0:03:00]}  Bxf4 {[%clk 0:02:45]} 8. Qxf4 {[%clk 0:03:00]}  Nc6 {[%clk 0:02:30]} 9. e3 {[%clk 0:02:47]}  b6 {[%clk 0:02:30]} 10. cxb6 {[%clk 0:02:47]}  cxb6 {[%clk 0:02:29]} 11. Bd3 {[%clk 0:02:43]}  Bb7 {[%clk 0:02:27]} 12. O-O {[%clk 0:02:41]}  Qb8 {[%clk 0:02:14]} 13. Rac1 {[%clk 0:01:37]}  Qxf4 {[%clk 0:02:07]} 14. exf4 {[%clk 0:01:38]}  g6 {[%clk 0:02:07]} 15. Na4 {[%clk 0:01:29]}  Nd7 {[%clk 0:02:07]} 16. Ne5 {[%clk 0:01:28]}  Ncxe5 {[%clk 0:01:38]} 17. dxe5 {[%clk 0:01:29]}  Kd8 {[%clk 0:01:36]} 18. b4 {[%clk 0:01:10]}  Rc8 {[%clk 0:01:29]} 19. Rxc8+ {[%clk 0:01:09]}  Kxc8 {[%clk 0:01:29]} 20. Rc1+ {[%clk 0:01:10]}  Kb8 {[%clk 0:01:29]} 21. g3 {[%clk 0:01:05]}  g5 {[%clk 0:01:03]} 22. f3 {[%clk 0:01:00]}  gxf4 {[%clk 0:00:56]} 23. gxf4 {[%clk 0:01:01]}  Rg8+ {[%clk 0:00:56]} 24. Kf2 {[%clk 0:01:01]}  Rg7 {[%clk 0:00:30]} 25. Nc3 {[%clk 0:00:50]}  f6 {[%clk 0:00:20]} 26. exf6 {[%clk 0:00:50]}  Nxf6 {[%clk 0:00:21]} 27. Ne2 {[%clk 0:00:50]}  Rc7 {[%clk 0:00:16]} 28. Rg1 {[%clk 0:00:47]}  Bc8 {[%clk 0:00:10]} 29. Rg6 {[%clk 0:00:46]}  Ne8 {[%clk 0:00:09]} 30. Rxh6 {[%clk 0:00:44]}  a5 {[%clk 0:00:08]} 31. bxa5 {[%clk 0:00:43]}  bxa5 {[%clk 0:00:09]} 32. h4 {[%clk 0:00:43]}  Nd6 {[%clk 0:00:06]} 33. h5 {[%clk 0:00:42]}  Rf7 {[%clk 0:00:05]} 34. Ke3 {[%clk 0:00:40]}  Kc7 {[%clk 0:00:00]} 35. Nd4 {[%clk 0:00:39]} 1-0

[Event "January 2 Early 2024"]
[Site "https://www.chess.com"]
[Date "2024.01.02"]
[Round "11"]
[White "Rustemov, Alexander"]
[Black "Martinez Alcantara, Jose Eduardo"]
[Result "0-1"]
[Board "13"]
[TimeControl "180+1"]
[WhiteFideId "4119002"]
[BlackFideId "3805662"]
[WhiteElo "2872"]
[BlackElo "3045"]
[WhiteTeam "RUS"]
[BlackTeam "PER"]
[WhiteClock "0:00:02"]
[BlackClock "0:00:46"]

1. d4 {[%clk 0:03:00]}  a6 {[%clk 0:03:00]} 2. Bg5 {[%clk 0:02:58]}  h6 {[%clk 0:03:01]} 3. Bh4 {[%clk 0:02:57]}  b6 {[%clk 0:03:02]} 4. Nd2 {[%clk 0:02:55]}  Bb7 {[%clk 0:03:03]} 5. e4 {[%clk 0:02:50]}  d6 {[%clk 0:03:03]} 6. Bd3 {[%clk 0:02:48]}  g6 {[%clk 0:03:03]} 7. Ne2 {[%clk 0:02:47]}  Bg7 {[%clk 0:03:04]} 8. c3 {[%clk 0:02:47]}  Nd7 {[%clk 0:03:04]} 9. O-O {[%clk 0:02:46]}  Ngf6 {[%clk 0:03:05]} 10. f3 {[%clk 0:02:43]}  e5 {[%clk 0:03:05]} 11. d5 {[%clk 0:02:41]}  O-O {[%clk 0:03:03]} 12. c4 {[%clk 0:02:40]}  a5 {[%clk 0:03:03]} 13. Nc3 {[%clk 0:02:39]}  Bc8 {[%clk 0:02:45]} 14. a3 {[%clk 0:02:38]}  Re8 {[%clk 0:02:40]} 15. b4 {[%clk 0:02:36]}  Nf8 {[%clk 0:02:39]} 16. Nb3 {[%clk 0:02:34]}  g5 {[%clk 0:02:39]} 17. Bf2 {[%clk 0:02:32]}  a4 {[%clk 0:02:40]} 18. Nd2 {[%clk 0:02:31]}  Ng6 {[%clk 0:02:41]} 19. Bc2 {[%clk 0:02:16]}  g4 {[%clk 0:02:35]} 20. Bxa4 {[%clk 0:02:15]}  Rf8 {[%clk 0:02:36]} 21. Bc6 {[%clk 0:02:14]}  Rb8 {[%clk 0:02:36]} 22. a4 {[%clk 0:02:11]}  gxf3 {[%clk 0:02:30]} 23. Nxf3 {[%clk 0:02:06]}  Ng4 {[%clk 0:02:30]} 24. a5 {[%clk 0:01:57]}  bxa5 {[%clk 0:02:31]} 25. bxa5 {[%clk 0:01:57]}  Ba6 {[%clk 0:02:11]} 26. Bb5 {[%clk 0:01:56]}  Ra8 {[%clk 0:02:11]} 27. Ne2 {[%clk 0:01:38]}  h5 {[%clk 0:02:08]} 28. Ng3 {[%clk 0:01:37]}  Nf4 {[%clk 0:02:08]} 29. Nf5 {[%clk 0:01:36]}  Qf6 {[%clk 0:02:09]} 30. Kh1 {[%clk 0:01:34]}  Kh8 {[%clk 0:02:06]} 31. g3 {[%clk 0:01:29]}  Nh3 {[%clk 0:02:04]} 32. Bg1 {[%clk 0:01:18]}  Rfb8 {[%clk 0:02:01]} 33. Qe2 {[%clk 0:01:18]}  Qg6 {[%clk 0:01:55]} 34. Be3 {[%clk 0:01:16]}  Bf6 {[%clk 0:01:48]} 35. Rfb1 {[%clk 0:01:11]}  Bc8 {[%clk 0:01:46]} 36. a6 {[%clk 0:00:54]}  Bxf5 {[%clk 0:01:45]} 37. exf5 {[%clk 0:00:53]}  Qxf5 {[%clk 0:01:46]} 38. Rf1 {[%clk 0:00:45]}  Qe4 {[%clk 0:01:34]} 39. Rae1 {[%clk 0:00:45]}  Rxb5 {[%clk 0:01:23]} 40. cxb5 {[%clk 0:00:45]}  Qxd5 {[%clk 0:01:23]} 41. Qg2 {[%clk 0:00:41]}  e4 {[%clk 0:01:21]} 42. Ng1 {[%clk 0:00:32]}  Nxg1 {[%clk 0:01:21]} 43. Bxg1 {[%clk 0:00:31]}  Re8 {[%clk 0:01:11]} 44. h3 {[%clk 0:00:31]}  Bc3 {[%clk 0:01:11]} 45. hxg4 {[%clk 0:00:30]}  Bxe1 {[%clk 0:01:11]} 46. Rxe1 {[%clk 0:00:29]}  hxg4 {[%clk 0:01:08]} 47. a7 {[%clk 0:00:29]}  Kg7 {[%clk 0:01:08]} 48. Qb2+ {[%clk 0:00:25]}  f6 {[%clk 0:01:08]} 49. Qd4 {[%clk 0:00:25]}  Qf5 {[%clk 0:00:55]} 50. Qf2 {[%clk 0:00:19]}  Qh5+ {[%clk 0:00:54]} 51. Bh2 {[%clk 0:00:18]}  Qxb5 {[%clk 0:00:53]} 52. Qf4 {[%clk 0:00:13]}  Qd5 {[%clk 0:00:48]} 53. Qxg4+ {[%clk 0:00:07]}  Kf7 {[%clk 0:00:48]} 54. Qd7+ {[%clk 0:00:06]}  Re7 {[%clk 0:00:49]} 55. Qc8 {[%clk 0:00:05]}  e3+ {[%clk 0:00:49]} 56. Kg1 {[%clk 0:00:05]}  Qd2 {[%clk 0:00:45]} 57. Rf1 {[%clk 0:00:02]}  e2 {[%clk 0:00:46]} 58. a8=Q {[%clk 0:00:02]}  exf1=Q+ {[%clk 0:00:45]} 59. Kxf1 {[%clk 0:00:02]}  Re1# {[%clk 0:00:46]} 0-1

[Event "January 2 Early 2024"]
[Site "https://www.chess.com"]
[Date "2024.01.02"]
[Round "11"]
[White "Zemlyanskii, Ivan"]
[Black "Yeletsky, Ivan"]
[Result "0-1"]
[Board "15"]
[TimeControl "180+1"]
[WhiteFideId "24249971"]
[BlackFideId "24180327"]
[WhiteElo "2997"]
[BlackElo "2853"]
[WhiteTeam "RUS"]
[BlackTeam "RUS"]
[WhiteClock "0:00:04"]
[BlackClock "0:00:06"]

1. d4 {[%clk 0:03:00]}  d6 {[%clk 0:02:54]} 2. Nf3 {[%clk 0:02:58]}  Nf6 {[%clk 0:02:52]} 3. c4 {[%clk 0:02:58]}  g6 {[%clk 0:02:52]} 4. Nc3 {[%clk 0:02:59]}  Bf5 {[%clk 0:02:52]} 5. Qb3 {[%clk 0:02:56]}  b6 {[%clk 0:02:52]} 6. h3 {[%clk 0:02:57]}  Bg7 {[%clk 0:02:51]} 7. g4 {[%clk 0:02:51]}  Bd7 {[%clk 0:02:51]} 8. Bg2 {[%clk 0:02:50]}  Nc6 {[%clk 0:02:49]} 9. Qd1 {[%clk 0:02:48]}  O-O {[%clk 0:02:45]} 10. e4 {[%clk 0:02:25]}  h5 {[%clk 0:02:29]} 11. g5 {[%clk 0:02:22]}  Nh7 {[%clk 0:02:30]} 12. Be3 {[%clk 0:02:21]}  e5 {[%clk 0:02:26]} 13. d5 {[%clk 0:02:21]}  Nd4 {[%clk 0:02:27]} 14. Qd2 {[%clk 0:01:32]}  a6 {[%clk 0:01:56]} 15. h4 {[%clk 0:01:26]}  Nxf3+ {[%clk 0:01:45]} 16. Bxf3 {[%clk 0:01:27]}  b5 {[%clk 0:01:46]} 17. c5 {[%clk 0:01:16]}  b4 {[%clk 0:01:42]} 18. Ne2 {[%clk 0:01:13]}  a5 {[%clk 0:01:43]} 19. c6 {[%clk 0:01:07]}  Bc8 {[%clk 0:01:43]} 20. a3 {[%clk 0:01:06]}  Ba6 {[%clk 0:01:31]} 21. axb4 {[%clk 0:01:05]}  axb4 {[%clk 0:01:32]} 22. Qxb4 {[%clk 0:00:57]}  f6 {[%clk 0:01:25]} 23. Bxh5 {[%clk 0:00:36]}  gxh5 {[%clk 0:00:55]} 24. g6 {[%clk 0:00:37]}  f5 {[%clk 0:00:35]} 25. gxh7+ {[%clk 0:00:36]}  Kh8 {[%clk 0:00:36]} 26. exf5 {[%clk 0:00:30]}  Bd3 {[%clk 0:00:28]} 27. Kd2 {[%clk 0:00:16]}  Rb8 {[%clk 0:00:25]} 28. Qc3 {[%clk 0:00:16]}  Be4 {[%clk 0:00:26]} 29. Rhg1 {[%clk 0:00:14]}  Bxd5 {[%clk 0:00:26]} 30. Ra7 {[%clk 0:00:05]}  Rxf5 {[%clk 0:00:14]} 31. Rg5 {[%clk 0:00:05]}  Rxg5 {[%clk 0:00:11]} 32. Bxg5 {[%clk 0:00:06]}  Qc8 {[%clk 0:00:10]} 33. Ng3 {[%clk 0:00:05]}  Qf8 {[%clk 0:00:06]} 34. Be3 {[%clk 0:00:04]}  Rc8 {[%clk 0:00:06]} 35. Qa5 {[%clk 0:00:03]}  Bh6 {[%clk 0:00:06]} 36. Qxd5 {[%clk 0:00:02]}  Qxf2+ {[%clk 0:00:05]} 37. Kd1 {[%clk 0:00:03]}  Qxe3 {[%clk 0:00:05]} 38. Nf5 {[%clk 0:00:02]}  Rf8 {[%clk 0:00:03]} 39. Rxc7 {[%clk 0:00:02]}  Qc1+ {[%clk 0:00:02]} 40. Ke2 {[%clk 0:00:02]}  Qxb2+ {[%clk 0:00:03]} 41. Kd1 {[%clk 0:00:02]}  Qc1+ {[%clk 0:00:03]} 42. Ke2 {[%clk 0:00:02]}  Qb2+ {[%clk 0:00:02]} 43. Kd1 {[%clk 0:00:03]}  Qb1+ {[%clk 0:00:03]} 44. Ke2 {[%clk 0:00:03]}  Qxf5 {[%clk 0:00:03]} 45. Qxd6 {[%clk 0:00:02]}  Qf3+ {[%clk 0:00:04]} 46. Ke1 {[%clk 0:00:02]}  Qe3+ {[%clk 0:00:04]} 47. Kd1 {[%clk 0:00:02]}  Rf1+ {[%clk 0:00:04]} 48. Kc2 {[%clk 0:00:03]}  Rc1+ {[%clk 0:00:05]} 49. Kb2 {[%clk 0:00:04]}  Qc3+ {[%clk 0:00:05]} 50. Ka2 {[%clk 0:00:04]}  Ra1# {[%clk 0:00:06]} 0-1

[Event "January 2 Early 2024"]
[Site "https://www.chess.com"]
[Date "2024.01.02"]
[Round "11"]
[White "Materia, Marco"]
[Black "Svane, Rasmus"]
[Result "0-1"]
[Board "16"]
[TimeControl "180+1"]
[WhiteFideId "45150451"]
[BlackFideId "4657101"]
[WhiteElo "2839"]
[BlackElo "2987"]
[WhiteTeam "FRA"]
[BlackTeam "GER"]
[WhiteClock "0:00:11"]
[BlackClock "0:00:16"]

1. d4 {[%clk 0:03:00]}  d5 {[%clk 0:02:58]} 2. c4 {[%clk 0:03:00]}  e6 {[%clk 0:02:58]} 3. Nf3 {[%clk 0:03:00]}  a6 {[%clk 0:02:59]} 4. cxd5 {[%clk 0:02:59]}  exd5 {[%clk 0:03:00]} 5. Bf4 {[%clk 0:02:58]}  Bd6 {[%clk 0:02:59]} 6. Bxd6 {[%clk 0:02:58]}  Qxd6 {[%clk 0:03:00]} 7. Nc3 {[%clk 0:02:58]}  Nf6 {[%clk 0:03:00]} 8. e3 {[%clk 0:02:58]}  O-O {[%clk 0:03:00]} 9. Bd3 {[%clk 0:02:58]}  Bg4 {[%clk 0:02:59]} 10. h3 {[%clk 0:02:58]}  Bxf3 {[%clk 0:02:59]} 11. Qxf3 {[%clk 0:02:58]}  c6 {[%clk 0:02:59]} 12. O-O {[%clk 0:02:58]}  Nbd7 {[%clk 0:02:59]} 13. Rab1 {[%clk 0:02:53]}  a5 {[%clk 0:02:57]} 14. Bc2 {[%clk 0:02:30]}  Rfe8 {[%clk 0:02:57]} 15. a3 {[%clk 0:02:30]}  g6 {[%clk 0:02:53]} 16. Rfc1 {[%clk 0:02:27]}  Kg7 {[%clk 0:02:51]} 17. Qd1 {[%clk 0:02:21]}  h5 {[%clk 0:02:50]} 18. Qd2 {[%clk 0:02:18]}  Nb6 {[%clk 0:02:48]} 19. Qd3 {[%clk 0:02:12]}  Nbd7 {[%clk 0:02:39]} 20. b4 {[%clk 0:02:07]}  b5 {[%clk 0:02:33]} 21. Ne2 {[%clk 0:01:57]}  Nb6 {[%clk 0:02:29]} 22. Nf4 {[%clk 0:01:57]}  Ne4 {[%clk 0:02:10]} 23. Bb3 {[%clk 0:01:01]}  axb4 {[%clk 0:01:59]} 24. axb4 {[%clk 0:01:01]}  Nc4 {[%clk 0:01:59]} 25. Bxc4 {[%clk 0:00:58]}  bxc4 {[%clk 0:02:00]} 26. Qc2 {[%clk 0:00:55]}  Reb8 {[%clk 0:01:59]} 27. f3 {[%clk 0:00:53]}  Nf6 {[%clk 0:01:52]} 28. Qd2 {[%clk 0:00:45]}  Ra4 {[%clk 0:01:45]} 29. g4 {[%clk 0:00:39]}  Raxb4 {[%clk 0:01:37]} 30. Rxb4 {[%clk 0:00:34]}  Qxb4 {[%clk 0:01:38]} 31. Qxb4 {[%clk 0:00:26]}  Rxb4 {[%clk 0:01:37]} 32. g5 {[%clk 0:00:27]}  Nh7 {[%clk 0:01:23]} 33. h4 {[%clk 0:00:26]}  Nf8 {[%clk 0:01:24]} 34. e4 {[%clk 0:00:26]}  Ne6 {[%clk 0:01:22]} 35. Nxe6+ {[%clk 0:00:25]}  fxe6 {[%clk 0:01:23]} 36. Kf2 {[%clk 0:00:25]}  Kf7 {[%clk 0:00:23]} 37. Ke3 {[%clk 0:00:22]}  e5 {[%clk 0:00:23]} 38. dxe5 {[%clk 0:00:18]}  Ke6 {[%clk 0:00:23]} 39. f4 {[%clk 0:00:16]}  c3 {[%clk 0:00:17]} 40. Rxc3 {[%clk 0:00:13]}  d4+ {[%clk 0:00:17]} 41. Kd3 {[%clk 0:00:11]}  dxc3 {[%clk 0:00:18]} 42. f5+ {[%clk 0:00:11]}  gxf5 {[%clk 0:00:17]} 43. g6 {[%clk 0:00:11]}  fxe4+ {[%clk 0:00:16]} 0-1

[Event "January 2 Early 2024"]
[Site "https://www.chess.com"]
[Date "2024.01.02"]
[Round "11"]
[White "Pakleza, Zbigniew"]
[Black "Praggnanandhaa R"]
[Result "0-1"]
[Board "17"]
[TimeControl "180+1"]
[WhiteFideId "1119290"]
[BlackFideId "25059530"]
[WhiteElo "2821"]
[BlackElo "2941"]
[WhiteTeam "POL"]
[BlackTeam "IND"]
[WhiteClock "0:00:21"]
[BlackClock "0:00:32"]

1. d4 {[%clk 0:03:00]}  Nf6 {[%clk 0:02:44]} 2. Nf3 {[%clk 0:03:01]}  g6 {[%clk 0:02:43]} 3. Bf4 {[%clk 0:03:01]}  Bg7 {[%clk 0:02:43]} 4. e3 {[%clk 0:03:01]}  O-O {[%clk 0:02:43]} 5. Be2 {[%clk 0:03:01]}  d6 {[%clk 0:02:44]} 6. h3 {[%clk 0:03:02]}  Nbd7 {[%clk 0:02:42]} 7. O-O {[%clk 0:03:02]}  b6 {[%clk 0:02:42]} 8. c3 {[%clk 0:03:01]}  Bb7 {[%clk 0:02:43]} 9. Nbd2 {[%clk 0:03:02]}  Qe8 {[%clk 0:02:43]} 10. Bh2 {[%clk 0:03:02]}  e5 {[%clk 0:02:43]} 11. a4 {[%clk 0:03:03]}  e4 {[%clk 0:02:40]} 12. Ne1 {[%clk 0:03:03]}  a5 {[%clk 0:02:41]} 13. Nc2 {[%clk 0:03:02]}  Nd5 {[%clk 0:02:41]} 14. Na3 {[%clk 0:03:02]}  Qe7 {[%clk 0:02:38]} 15. Nb5 {[%clk 0:03:01]}  N7f6 {[%clk 0:02:34]} 16. Qb3 {[%clk 0:02:56]}  Qd7 {[%clk 0:02:29]} 17. Rac1 {[%clk 0:02:37]}  Ne7 {[%clk 0:02:14]} 18. Rfd1 {[%clk 0:02:29]}  Nf5 {[%clk 0:02:08]} 19. c4 {[%clk 0:02:28]}  Ba6 {[%clk 0:02:01]} 20. Bf1 {[%clk 0:02:25]}  c6 {[%clk 0:01:42]} 21. Nc3 {[%clk 0:02:22]}  Rfe8 {[%clk 0:01:42]} 22. Qc2 {[%clk 0:01:46]}  Qe7 {[%clk 0:01:38]} 23. c5 {[%clk 0:01:37]}  bxc5 {[%clk 0:01:35]} 24. dxc5 {[%clk 0:01:28]}  d5 {[%clk 0:01:35]} 25. Bxa6 {[%clk 0:01:27]}  Rxa6 {[%clk 0:01:36]} 26. Nb3 {[%clk 0:01:25]}  Qb7 {[%clk 0:01:22]} 27. Nd4 {[%clk 0:01:14]}  Nxd4 {[%clk 0:01:21]} 28. exd4 {[%clk 0:01:14]}  Qb4 {[%clk 0:01:16]} 29. Na2 {[%clk 0:01:08]}  Qb7 {[%clk 0:01:14]} 30. Rb1 {[%clk 0:01:08]}  e3 {[%clk 0:01:07]} 31. fxe3 {[%clk 0:00:59]}  Rxe3 {[%clk 0:01:06]} 32. b4 {[%clk 0:01:00]}  Qe7 {[%clk 0:01:06]} 33. b5 {[%clk 0:00:57]}  Re2 {[%clk 0:00:59]} 34. Qd3 {[%clk 0:00:47]}  cxb5 {[%clk 0:00:54]} 35. axb5 {[%clk 0:00:46]}  Rae6 {[%clk 0:00:54]} 36. Nc3 {[%clk 0:00:42]}  R6e3 {[%clk 0:00:50]} 37. Qxe2 {[%clk 0:00:23]}  Rxe2 {[%clk 0:00:50]} 38. Nxe2 {[%clk 0:00:24]}  Qxe2 {[%clk 0:00:50]} 39. b6 {[%clk 0:00:25]}  Ne4 {[%clk 0:00:47]} 40. b7 {[%clk 0:00:26]}  Qe3+ {[%clk 0:00:47]} 41. Kh1 {[%clk 0:00:22]}  Nf2+ {[%clk 0:00:46]} 42. Kg1 {[%clk 0:00:23]}  Nxh3+ {[%clk 0:00:40]} 43. Kh1 {[%clk 0:00:23]}  Nf2+ {[%clk 0:00:41]} 44. Kg1 {[%clk 0:00:23]}  Nxd1+ {[%clk 0:00:42]} 45. Kh1 {[%clk 0:00:23]}  Qe1+ {[%clk 0:00:33]} 46. Bg1 {[%clk 0:00:23]}  Nf2+ {[%clk 0:00:33]} 47. Kh2 {[%clk 0:00:21]}  Qxb1 {[%clk 0:00:32]} 0-1

[Event "January 2 Early 2024"]
[Site "https://www.chess.com"]
[Date "2024.01.02"]
[Round "11"]
[White "Aswath, S"]
[Black "Galchenko, Matvey"]
[Result "0-1"]
[Board "24"]
[TimeControl "180+1"]
[WhiteFideId "46694919"]
[BlackFideId "24175480"]
[WhiteElo "2634"]
[BlackElo "2898"]
[WhiteTeam "IND"]
[BlackTeam "FID"]
[WhiteClock "0:00:44"]
[BlackClock "0:00:10"]

1. c4 {[%clk 0:03:00]}  e6 {[%clk 0:02:54]} 2. g3 {[%clk 0:03:00]}  d5 {[%clk 0:02:55]} 3. Bg2 {[%clk 0:03:00]}  dxc4 {[%clk 0:02:54]} 4. Qa4+ {[%clk 0:02:58]}  Nd7 {[%clk 0:02:54]} 5. Nf3 {[%clk 0:02:57]}  a6 {[%clk 0:02:54]} 6. Qxc4 {[%clk 0:02:57]}  b5 {[%clk 0:02:54]} 7. Qc2 {[%clk 0:02:55]}  Bb7 {[%clk 0:02:54]} 8. O-O {[%clk 0:02:56]}  c5 {[%clk 0:02:54]} 9. d3 {[%clk 0:02:55]}  Ngf6 {[%clk 0:02:54]} 10. Nc3 {[%clk 0:02:54]}  Be7 {[%clk 0:02:54]} 11. Bf4 {[%clk 0:02:52]}  O-O {[%clk 0:02:54]} 12. Rfd1 {[%clk 0:02:51]}  Qb6 {[%clk 0:02:47]} 13. a4 {[%clk 0:02:49]}  Rac8 {[%clk 0:02:44]} 14. Qb3 {[%clk 0:02:45]}  b4 {[%clk 0:02:33]} 15. a5 {[%clk 0:02:44]}  Qd8 {[%clk 0:02:33]} 16. e4 {[%clk 0:02:29]}  Bc6 {[%clk 0:02:22]} 17. Nb1 {[%clk 0:02:24]}  c4 {[%clk 0:01:51]} 18. Qxc4 {[%clk 0:02:15]}  Ba4 {[%clk 0:01:43]} 19. Rxa4 {[%clk 0:01:57]}  Rxc4 {[%clk 0:01:43]} 20. dxc4 {[%clk 0:01:57]}  Qc8 {[%clk 0:01:36]} 21. Ra1 {[%clk 0:01:51]}  Nxe4 {[%clk 0:01:34]} 22. Ne5 {[%clk 0:01:37]}  Nxe5 {[%clk 0:01:32]} 23. Bxe5 {[%clk 0:01:38]}  Qxc4 {[%clk 0:01:13]} 24. b3 {[%clk 0:01:34]}  Qe2 {[%clk 0:01:03]} 25. Rf1 {[%clk 0:01:33]}  Nxf2 {[%clk 0:00:55]} 26. Bd4 {[%clk 0:01:31]}  Nd3 {[%clk 0:00:45]} 27. Bf3 {[%clk 0:01:27]}  Qc2 {[%clk 0:00:45]} 28. Bd1 {[%clk 0:01:26]}  Qc8 {[%clk 0:00:31]} 29. Nd2 {[%clk 0:01:22]}  Bc5 {[%clk 0:00:31]} 30. Bxc5 {[%clk 0:01:23]}  Qxc5+ {[%clk 0:00:32]} 31. Kg2 {[%clk 0:01:23]}  Qc3 {[%clk 0:00:27]} 32. Ra2 {[%clk 0:01:22]}  Rd8 {[%clk 0:00:23]} 33. Ne4 {[%clk 0:01:17]}  Ne1+ {[%clk 0:00:17]} 34. Kh3 {[%clk 0:01:12]}  Qe3 {[%clk 0:00:12]} 35. Nf2 {[%clk 0:00:44]}  Qh6+ {[%clk 0:00:09]} 36. Kg4 {[%clk 0:00:44]}  f5# {[%clk 0:00:10]} 0-1